Cogmind - Beta 13 X2 @@@ ROGUE MODE // 2024.01.16 @ 17:55:10 Player: Decinym Result: Destroyed by Piercing Trap Performance ------------- Evolutions (0) 0 Regions Visited (3) 600 Robots Destroyed (10) 50 Value Destroyed (274) 274 Prototype IDs (0) 0 Alien Tech Used (0) 0 Bonus (0) 0 TOTAL SCORE: 924 Bonus ------- None Cogmind --------- Core Integrity 0/250 Matter 300/300 Energy 248/250 System Corruption 0% Temperature Cool (1) Movement Treading (240) Ox1 Location -10/Subcaves Parts ------- > --- POWER (1) -------- Ion Engine > --- PROPULSION (2) --- Light Treads Carbon-fiber Leg > --- UTILITY (2) ------ Improved Heat Sink Small Storage Unit > --- WEAPON (2) ------- Heavy Particle Cannon Ion Cannon > --- INVENTORY (8) ---- Light Treads Compact Wheel Improved Light Armor Plating Small Laser EM Pulse Cannon Assault Rifle Multitool Peak State ------------ > --- POWER ------------ Light Ion Engine > --- PROPULSION ------- Aluminum Leg Carbon-fiber Leg > --- UTILITY ---------- Improved Heat Sink Small Storage Unit > --- WEAPON ----------- Heavy Particle Cannon Ion Cannon > --- INVENTORY -------- Ion Engine Light Treads Light Treads Compact Wheel Improved Light Armor Plating Small Laser EM Pulse Cannon Assault Rifle [Rating: 16] Favorites ----------- Power Light Ion Engine Engine Light Ion Engine Propulsion Aluminum Leg Treads Light Treads Leg Aluminum Leg Wheel Wheel Utility Small Storage Unit Device Improved Heat Sink Storage Small Storage Unit Protection Improved Light Armor Plating Weapon Heavy Particle Cannon Energy Gun Small Laser Energy Cannon Heavy Particle Cannon Build | -11 -10 -10 -10 ------- Run | Yrd Mat Min Sub Slots Evolved . | . . . . Power . | . . . . Propulsion . | . . . . Utility . | . . . . Weapon . | . . . . Parts Attached 10 | . . 8 2 Power 1 | . . . 1 Engine 1 | . . . 1 Core . | . . . . Reactor . | . . . . Propulsion 5 | . . 4 1 Treads 2 | . . 1 1 Leg 2 | . . 2 . Wheel 1 | . . 1 . Hover . | . . . . Flight . | . . . . Utility 2 | . . 2 . Device 1 | . . 1 . Storage . | . . . . Processor . | . . . . Hackware . | . . . . Protection 1 | . . 1 . Artifact . | . . . . Weapon 2 | . . 2 . Energy Gun . | . . . . Energy Cannon 2 | . . 2 . Ballistic Gun . | . . . . Ballistic Cannon . | . . . . Launcher . | . . . . Special Weapon . | . . . . Impact Weapon . | . . . . Slashing Weapon . | . . . . Piercing Weapon . | . . . . Special Melee Weapon . | . . . . Unidentified Prototypes . | . . . . Parts Lost 2 | . . . 2 Power 1 | . . . 1 Propulsion 1 | . . . 1 Utility . | . . . . Weapon . | . . . . Highest Loss Streak 1 | . . . 1 To Critical Strikes . | . . . . Average Slot Usage (%) 98 | . 85 99 99 Engine 14 | . 14 14 14 Treads 2 | . . 4 1 Leg 22 | . 28 18 26 Wheel 2 | . . 4 . Device 10 | . . 8 14 Storage 14 | . 14 14 14 Protection 2 | . . 5 . Energy Gun 2 | . 28 1 . Energy Cannon 25 | . . 26 28 Naked Turns . | . . . . Heaviest Build 23 | 11 11 23 23 Greatest Support 25 | 20 20 25 25 Greatest Overweight (x) 2 | . . 2 1 Average Overweight (x) . | . . . . Largest Inventory Capacity 8 | . 8 8 8 Average Capacity 8 | . 8 8 8 Most Carried 8 | . 6 8 8 Average Carried 7 | . 6 7 7 Final Capacity 8 | 8 8 8 8 Final Carried 8 | 6 6 8 7 Class Distribution -------------------- 100% | Mutant Dominant Class ---------------- Mutant | -10/Materials Mutant | -10/Mines Mutant | -10/Subcaves Resources | -11 -10 -10 -10 ----------- Run | Yrd Mat Min Sub Matter Collected 330 | 200 . 110 20 Remotely . | . . . . Salvage Created 311 | . 43 12 256 Parts 21 | . 1 . 20 Haulers Intercepted . | . . . . Recyclers Shooed . | . . . . Parts Field Recycled . | . . . . Retrieved Matter . | . . . . Parts Self-Destructed 6 | . . . 6 Prevented . | . . . . Kills | -11 -10 -10 -10 ------- Run | Yrd Mat Min Sub Combat Hostiles Destroyed 10 | . 1 1 8 Guns 1 | . 1 . . Cannons 9 | . . 1 8 Classes Destroyed 4 | . 1 1 2 Swarmer 4 | . . 1 3 Grunt 1 | . 1 . . Artisan 1 | . . . 1 Subdweller 5 | . . . 5 Best Kill Streak 2 | . 1 1 2 Combat Bots Only 2 | . 1 1 2 Max Kills in Single Turn 1 | . 1 1 1 Gunslinging . | . . . . Exploded . | . . . . Melee . | . . . . Uniques/NPCs Destroyed . | . . . . Combat | -11 -10 -10 -10 -------- Run | Yrd Mat Min Sub Hostile Shots Fired 49 | . 4 6 39 Missed 9 | . . 1 8 Damage Taken 659 | . 43 41 575 Core 266 | . 22 8 236 Absorbed by Shields . | . . . . Core Remaining (%) 100 | 100 . . . Volleys Fired 31 | . 2 7 22 Largest 2 | . 2 2 2 Hottest 135 | . 80 135 135 Shots Fired 62 | . 4 14 44 Gun 4 | . 4 . . Cannon 58 | . . 14 44 Launcher . | . . . . Special . | . . . . Kinetic . | . . . . Thermal 60 | . 2 14 44 Explosive . | . . . . Electromagnetic 2 | . 2 . . Robot Hit Streak 10 | . 2 5 10 Robot Miss Streak 7 | . 1 3 7 Penetration Max . | . . . . Secondary Targets . | . . . . Shots Hit Robots 34 | . 2 6 26 Core Hits 13 | . 1 1 11 Critical Kills . | . . . . Critical Parts Destroyed . | . . . . Critical Strikes . | . . . . Melee Attacks . | . . . . Impact . | . . . . Slashing . | . . . . Piercing . | . . . . Sneak Attacks . | . . . . Combat Hostiles . | . . . . Follow-up Attacks . | . . . . Damage Inflicted 801 | . 27 148 626 Guns 27 | . 27 . . Cannons 774 | . . 148 626 Explosions . | . . . . Melee . | . . . . Ramming . | . . . . Kinetic . | . . . . Thermal 786 | . 12 148 626 Explosive . | . . . . Electromagnetic 15 | . 15 . . Impact . | . . . . Slashing . | . . . . Piercing . | . . . . Highest Corruption . | . . . . Average Corruption . | . . . . Corruption Purged . | . . . . Corruption Blocked . | . . . . Overload Shots . | . . . . Overflow Damage 18 | . . 18 . Projectiles 18 | . . 18 . Explosions . | . . . . Melee . | . . . . Knockbacks . | . . . . Impact . | . . . . Kinetic . | . . . . Secondary . | . . . . Self-Inflicted Damage . | . . . . Shots . | . . . . Rammed . | . . . . Targets Rammed . | . . . . Kicked . | . . . . Crushed . | . . . . Highest Temperature 324 | . 42 324 . Average Temperature 105 | . 23 120 . Received Heat Transfer 63 | . 24 . 39 Effects 1 | . . 1 . Matter Decay 1 | . . 1 . Siege Activations . | . . . . Robots Corrupted . | . . . . Combat Hostiles . | . . . . Parts Fried . | . . . . Impact Corruptions . | . . . . Robots Melted . | . . . . Combat Hostiles . | . . . . Parts Melted 3 | . . . 3 Heat Transferred 1209 | . 25 222 962 Parts Sabotaged . | . . . . Parts Stolen . | . . . . Parts Stripped . | . . . . Power Chain Reactions . | . . . . Missiles Intercepted . | . . . . Alert | -11 -10 -10 -10 ------- Run | Yrd Mat Min Sub Peak Influence 75 | . 75 52 . Initial 28 | . . 28 . Average 27 | . 15 29 . Maximum Alert Level . | . . . . Low Security (%) 100 | . 100 100 . Level 1 . | . . . . Level 2 . | . . . . Level 3 . | . . . . Level 4 . | . . . . Level 5 . | . . . . High Security . | . . . . Max Security . | . . . . Squads Dispatched 2 | . 1 1 . Investigation 2 | . 1 1 . Extermination . | . . . . Reinforcement . | . . . . Assault . | . . . . Garrison . | . . . . Intercept . | . . . . Searches Triggered . | . . . . Construction Impeded . | . . . . Haulers Reinforced . | . . . . Active Scanning Responses . | . . . . Cargo Convoy Interrupts . | . . . . Stealth | -11 -10 -10 -10 --------- Run | Yrd Mat Min Sub Distress Signals . | . . . . Communications Jammed . | . . . . Distress Signals . | . . . . Times Spotted 13 | . 3 1 9 Peak Tracking Total 4 | . 4 1 3 Tactical Retreats 1 | . . . 1 Traps | -11 -10 -10 -10 ------- Run | Yrd Mat Min Sub Traps Triggered 2 | . . . 2 Indirectly . | . . . . Trap Hack Attempts . | . . . . Triggered . | . . . . Disarmed . | . . . . Reprogrammed . | . . . . Reused . | . . . . Traps Extracted . | . . . . Installed . | . . . . Triggered . | . . . . Machines | -11 -10 -10 -10 ---------- Run | Yrd Mat Min Sub Machines Disabled . | . . . . Max in Single Turn . | . . . . Machines Repaired . | . . . . Machines Dismantled . | . . . . Machines Sabotaged . | . . . . Overloaded Fab Kills . | . . . . Hacking | -11 -10 -10 -10 --------- Run | Yrd Mat Min Sub Machines Accessed 2 | . 1 1 . Terminals . | . . . . Fabricators . | . . . . Repair Stations . | . . . . Recycling Units 1 | . 1 . . Scanalyzers . | . . . . Garrison Access . | . . . . Total Hacks 2 | . 1 1 . Successful 2 | . 1 1 . Failed . | . . . . Catastrophic . | . . . . Database Lockouts . | . . . . Manual 1 | . 1 . . Terminals . | . . . . Fabricators . | . . . . Repair Stations . | . . . . Recycling Units 1 | . 1 . . Scanalyzers . | . . . . Garrison Access . | . . . . Terminal Hacks 1 | . . 1 . Open Door 1 | . . 1 . Fabricator Hacks . | . . . . Repair Station Hacks . | . . . . Recycling Unit Hacks . | . . . . Scanalyzer . | . . . . Garrison Access Hacks . | . . . . Unauthorized Hacks 1 | . 1 . . Terminals . | . . . . Fabricators . | . . . . Repair Stations . | . . . . Recycling Units 1 | . 1 . . Tunnel 1 | . 1 . . Scanalyzers . | . . . . Garrison Access . | . . . . Data Cores Recovered . | . . . . Used . | . . . . Hacking Detections . | . . . . Full Trace Events . | . . . . Feedback Events . | . . . . Feedback Blocked . | . . . . Robot Schematics Acquired . | . . . . Robots Built . | . . . . Authchips . | . . . . Time . | . . . . Total Robot Build Rating . | . . . . Part Schematics Acquired . | . . . . Parts Built . | . . . . Authchips . | . . . . Time . | . . . . Total Part Build Rating . | . . . . Parts Repaired . | . . . . Time . | . . . . Parts Recycled . | . . . . Recycled Matter . | . . . . Retrieved Matter . | . . . . Retrieved Components . | . . . . Parts Scanalyzed . | . . . . Part Schematics Acquired . | . . . . Parts Damaged . | . . . . Bothacking | -11 -10 -10 -10 ------------ Run | Yrd Mat Min Sub Used RIF Installer . | . . . . Robots Hacked . | . . . . Non-combat . | . . . . Combat . | . . . . Robot Hacks Applied . | . . . . Relay Couplers Released . | . . . . Fabnet Peak Effective % . | . . . . Robots Rewired . | . . . . Allies Hacked . | . . . . Hacks Repelled . | . . . . Allies | -11 -10 -10 -10 -------- Run | Yrd Mat Min Sub Total Allies . | . . . . Largest Group . | . . . . Highest-Rated Group . | . . . . Highest-Rated Ally . | . . . . Total Orders . | . . . . Ally Attacks . | . . . . Total Damage . | . . . . Kills . | . . . . Allies Corrupted . | . . . . Allies Melted . | . . . . Intel | -11 -10 -10 -10 ------- Run | Yrd Mat Min Sub Robot Analysis Total . | . . . . Derelict Logs Recovered . | . . . . Drone Launches . | . . . . Drone Recoveries . | . . . . Exploration | -11 -10 -10 -10 ------------- Run | Yrd Mat Min Sub Turns Passed 1192 | . 89 544 559 Spaces Moved 864 | 1 70 422 371 Core . | . . . . Treads 22 | . . . 22 Legs 700 | 1 70 280 349 Wheels 142 | . . 142 . Hover . | . . . . Flight . | . . . . Fastest Speed 110 | 120 120 110 120 Average Speed 121 | 120 120 116 127 Slowest Speed 240 | 120 120 120 240 Overloaded Moves . | . . . . Propulsion Burnouts . | . . . . Robots Hopped . | . . . . Cave-ins Triggered . | . . . . Exploration Rate (%) 30 | 2 15 71 32 Regions Visited 3 Branch Regions 2 Pre-discovered Areas 1 | . 1 . . Known Exits Taken . | . . . . Unknown Exits Taken 3 | 1 1 1 . Scrap Searched 6 | . . . 6 Spaces Dug . | . . . . Terrain Destroyed 5 | . . 5 . Melee . | . . . . Projectile 5 | . . 5 . AOE . | . . . . Terrain Rammed . | . . . . Walls Destroyed . | . . . . Machines Disabled . | . . . . Actions | -11 -10 -10 -10 --------- Run | Yrd Mat Min Sub Total 945 | . 71 458 416 Wait 36 | . . 16 20 Move 861 | . 69 421 371 Hop . | . . . . Pick Up 3 | . . 2 1 Fast Attach 4 | . . 4 . Attach 2 | . . . 2 Detach 1 | . . 1 . Swap 4 | . . 4 . Drop 3 | . . 3 . Fire 31 | . 2 7 22 Melee . | . . . . Ram . | . . . . Kick . | . . . . Crush . | . . . . Escape Stasis . | . . . . Rewire . | . . . . Trap . | . . . . Miscellaneous . | . . . . Route ------- -11/Scrapyard -10/Materials -10/Mines -10/Subcaves History --------- Turn | Location | Event 1 | -11/Scrapyard | Discovered new exit (range 0) 1 | -11/Scrapyard | Entered Materials 23 | -10/Materials | Discovered new exit (range 12) 90 | -10/Materials | Entered Mines 93 | -10/Mines | Met a Derelict shopkeep closing up shop 301 | -10/Mines | Build established: Mutant 632 | -10/Mines | Discovered new exit (range 3) 634 | -10/Mines | Entered Subcaves 639 | -10/Subcaves | Shifting Twisted Machinery released Shrapnel Trap 645 | -10/Subcaves | Shifting Twisted Machinery released Sub. Monowheel 1125 | -10/Subcaves | Core integrity fell below 50% 1135 | -10/Subcaves | Core integrity fell below 20% 1193 | -10/Subcaves | Destroyed by Piercing Trap Last Messages --------------- 01171_ Found Sub. Monowheel. 01171_ Found 29 Matter. 01178_ Searching scrap... 01178_ Found Sub. Machine Gun. 01178_ Found 38 Matter. 01183_ Searching scrap... 01183_ Found Sub. Machine Gun. 01183_ Found Battle Rifle. 01183_ Found 26 Matter. 01185_ Searching scrap... 01185_ Found Sub. Beam Cannon. 01185_ Found Sub. Machine Gun. 01185_ Found 34 Matter. 01193_ Searching scrap... 01193_ Found Sub. Shrapnel Launcher. 01193_ Found Ripper. 01193_ Found 37 Matter. 01193_ Triggered Piercing Trap. 01193_ Spikes shoot up from the floor. 01193_ Critical hit (Impale). Map ----- +----------------------------------------------------+ | | | | | | | | | | | | | | | | | | | | | | | | | | | | | | | | | | | | | | | ?????????????????????????????????????????????????? | | ?????????????????????????????????????????????????? | | ?????????????????????????????????????????????????? | | ?????????????????????????????????????????????????? | | ?????????????????????##############??????????????? | | ????????????????????##$$ /$ < < ##?????????????? | | ????????????????????#$ [@$ <<< <#?????????????? | | ????????????????????#$]%[|] &< <#?????????????? | | ????????????????????#<%[ ]%= <&< #?????????????? | | ????????????????????#<[<% %<<<< #?????????????? | | ????????????????????####<<<<&#=% < #?????????????? | | ???????????????????????######=& #?????????????? | | ????????????????????????#####&%& #?????????????? | | ????????????????????????# "[ #?????????????? | | ????????????????????????## ####??????????? | | ????????????????????????#" #" ## ####???????? | | ??????????????????????### """" ;# #???????? | | ????????????? ## " ### #???????? | | ????????????????????# #???????? | | ????????????????????# ## #???????? | | ???????????????????# ## #???????? | | ??????????????????# ## #???????? | | ??????????????????# ## ##??????? | | ?????????????????# ## #??????? | | ????????????????# ### #??????? | | ????????????????# ##?## ## ##?????? | | ????????????????## ###???## #? ##????? | | ?????????????????## #?????## ## ###??? | | ????????????? ????# ?????## ##?? | | ????????????# ????## ?????# #?? | | ?????? ### ????# ##?# #### ###?? | +----------------------------------------------------+ Best States ------------- Heat Dissipation 39 Energy Generation 10 Energy Capacity 250 Matter Stores 300 Matter Capacity 300 Sight Range 16 Terrain Scan Density 10 Armor Coverage 150 Evasion (%) 55 Recoil Reduction 1 Item Schematics ----------------- None Robot Schematics ------------------ None Fabricated ------------ Nothing Alien Tech Used ----------------- None Achievements -------------- None Challenges ------------ None Game ------ Seed FactoryNuclearHammer Manual? 0 Play Time 00:07:58 Cumulative 363.7 hours Start 2024.01.16 @ 17:49:50 End 2024.01.16 @ 17:55:10 Sessions 1 Manual Loads 0 Difficulty Rogue Special Mode None Game No. 387 Rogue 387 Adventurer 0 Explorer 0 Win Type - Total 29 Types 16/3/4/1/2/0/3/0/0 Lore% 86 Gallery% 87 Achievement% 82 Wizard Run 0 Options --------- ASCII 0 Keyboard 0 Movement Arrows Keybinds 0 Fullscreen 2 Font 24/Smallcaps Map View 76x50 Zoom Use 0% Tactical HUD 1 Map Filters NONE Filters NONE Steam 1 RUN: f352b03f-bca4-4a5f-aed9-21a3a062e17c